fUSD/lending_fUSD_20250126
["ID","MTS","AMOUNT","RATE_DAILY","PERIOD"]
[350446770,1737882646240,-151.0,0.00010958,2]
[350446772,1737882646249,-151.0,0.00010958,2]
[350446774,1737882646258,-18.74090031,0.00010958,2]
[350446776,1737882646276,-132.25909969,0.00010958,2]
[350446778,1737882646286,-151.0,0.00010958,2]
[350446780,1737882646295,-151.0,0.00010958,2]
[350446782,1737882646305,-151.0,0.00010958,2]
[350446783,1737882646314,-151.0,0.00010958,2]
[350446785,1737882646323,-151.0,0.00010958,2]
[350446787,1737882646333,-151.0,0.00010958,2]
[350446789,1737882646342,-151.0,0.00010958,2]
[350446790,1737882646351,-151.0,0.00010958,2]
[350446792,1737882646362,-151.0,0.00010958,2]
[350446794,1737882646371,-151.0,0.00010958,2]
[350446796,1737882646380,-151.0,0.00010958,2]
[350446797,1737882646388,-151.0,0.00010958,2]
[350446799,1737882646398,-151.0,0.00010958,2]
[350446801,1737882646407,-151.0,0.00010958,2]
[350446803,1737882646416,-142.39541201,0.00010958,2]
[350446805,1737882646435,-8.60458799,0.00010958,2]
[350446807,1737882646444,-151.0,0.00010958,2]
[350446809,1737882646453,-151.0,0.00010958,2]
[350446811,1737882646462,-151.0,0.00010958,2]
[350446812,1737882646471,-113.08422201,0.00010958,2]
[350446815,1737882646484,-37.91577799,0.00010958,2]
[350446817,1737882646493,-151.0,0.00010958,2]
[350446818,1737882646503,-151.0,0.00010958,2]
[350446820,1737882646512,-151.0,0.00010958,2]
[350446822,1737882646521,-151.0,0.00010958,2]
[350446824,1737882646531,-74.96422201,0.00010958,2]
[350446827,1737882646561,-76.03577799,0.00010958,2]
[350446829,1737882646571,-151.0,0.00010958,2]
[350446831,1737882646580,-151.0,0.00010958,2]
[350446833,1737882646589,-151.0,0.00010958,2]
[350446835,1737882646599,-151.0,0.00010958,2]
[350446837,1737882646607,-151.0,0.00010958,2]
[350446839,1737882646616,-151.0,0.00010958,2]
[350446840,1737882646625,-151.0,0.00010958,2]
[350446842,1737882646635,-151.0,0.00010958,2]
[350446844,1737882646645,-151.0,0.00010958,2]
[350446846,1737882646654,-151.0,0.00010958,2]
[350446848,1737882646666,-151.0,0.00010958,2]
[350446850,1737882646676,-151.0,0.00010958,2]
[350446852,1737882646685,-151.0,0.00010958,2]
[350446854,1737882646694,-58.95087841,0.00010958,2]
[350446923,1737882897083,558.7,8.219e-05,2]
[350446924,1737883046030,170.28,0.00016658,30]
[350446986,1737883831731,-186.38,9.651e-05,2]
[350446987,1737883831740,-176.84903149,9.845e-05,2]
[350446988,1737883831897,-73.15096851,9.845e-05,2]
[350446989,1737883831907,-411.33,9.866e-05,2]
[350446990,1737883831916,-9.26688494,9.897e-05,2]
[350446991,1737883831928,-990.73311506,9.897e-05,2]
[350446992,1737883831937,-77.26688394,9.923e-05,2]
[350446993,1737883831950,-172.73311606,9.923e-05,2]
[350446994,1737883831960,-174.65,9.95e-05,2]
[350446995,1737883831970,-311.52,9.963e-05,2]
[350446996,1737883831979,-543.02341988,0.0001,2]
[350446997,1737883832008,-8925.0332894,0.0001,2]
[350447010,1737883837573,-250.0,9.83e-05,2]
[350447011,1737883837582,-5135.208,0.0001,2]
[350447012,1737883837630,-26150.1506956,0.0001,2]
[350447013,1737883837642,-400.69207702,0.0001,2]
[350447014,1737883837651,-3838.04,0.00010031,2]
[350447015,1737883837661,-558.7,0.00010477,2]
[350447016,1737883837670,-310.15769598,0.000105,2]
[350447017,1737883837704,-409.59230402,0.000105,2]
[350447018,1737883837714,-298.24,0.000105,2]
[350447019,1737883837723,-189.00436395,0.000105,2]
[350447020,1737883837735,-110.99563605,0.000105,2]
[350447021,1737883837744,-193.12,0.00010512,2]
[350447022,1737883837753,-150.0,0.00010577,2]
[350447023,1737883837763,-298.24,0.00010578,2]
[350447024,1737883837772,-150.0,0.00010578,2]
[350447025,1737883837782,-300.0,0.00010578,2]
[350447026,1737883837791,-438.07,0.00010578,2]
[350447027,1737883837800,-500.0,0.000107,2]
[350447028,1737883837810,-250.0,0.00010721,2]
[350447029,1737883837819,-1478.0671742,0.00010758,2]
[350447030,1737883837828,-1478.06717421,0.000108,2]
[350447031,1737883837838,-770.62258193,0.000108,2]
[350447032,1737883837847,-670.6279443,0.000108,2]
[350447033,1737883837857,-834.5899,0.00010857,2]
[350447034,1737883837866,-4856.1399,0.00010857,2]
[350447035,1737883837876,-586.1234,0.00010857,2]
[350447036,1737883837885,-175.68031686,0.00010858,2]
[350447037,1737883837895,-207.90991184,0.00010858,2]
[350447038,1737883837904,-337.84256061,0.00010858,2]
[350447039,1737883837926,-239.84017479,0.00010858,2]
[350447040,1737883837936,-174.1043331,0.00010858,2]
[350447041,1737883837945,-184.56144435,0.00010858,2]
[350447042,1737883837955,-19901.49404777,0.000109,2]
[350447047,1737883839645,-939.74407581,0.000109,2]
[350447048,1737883839809,-1018.87611345,0.000109,2]
[350447049,1737883840081,-3892.40486884,0.000109,2]
[350447052,1737883841286,150.0,0.0001052,5]
[350447058,1737883842608,-10309.98388368,0.000109,2]
[350447059,1737883842618,-224.15373428,0.000109,2]
[350447060,1737883842628,-224.15373422,0.000109,2]
[350447061,1737883842638,-224.15373422,0.000109,2]
[350447062,1737883842648,-224.15373422,0.000109,2]
[350447063,1737883842658,-224.15373422,0.000109,2]
[350447064,1737883842667,-224.15373422,0.000109,2]
[350447065,1737883842677,-224.15373422,0.000109,2]
[350447066,1737883842688,-224.15373422,0.000109,2]
[350447067,1737883842698,-485.38095681,0.00010916,2]
[350447068,1737883842709,-485.38095681,0.00010928,2]
[350447069,1737883842719,-485.38095681,0.00010929,2]
[350447070,1737883842728,-585.8583226,0.00010948,2]
[350447071,1737883842737,-532.78068656,0.00010948,2]
[350447072,1737883842747,-532.78068656,0.00010948,2]
[350447073,1737883842757,-1836.185304,0.00010949,2]
[350447074,1737883842768,-1805.6350099,0.00010951,2]
[350447075,1737883842778,-576.1108619,0.00010951,2]
[350447076,1737883842789,-1000.0,0.00010956,2]
[350447077,1737883842799,-1451.428,0.00010956,2]
[350447078,1737883842809,-11599.63251148,0.00010957,2]
[350447079,1737883842830,-52588.000001,0.00010957,2]
[350447097,1737883843465,-1178.80716221,0.00010957,2]
[350447105,1737883845532,-1500.0,0.00010957,2]
[350447106,1737883845643,-829.56312,0.00010957,2]
[350447141,1737883906180,502.83,8.509e-05,2]
[350447142,1737883985885,170.28,0.00016658,30]
[350447150,1737884922183,511.51,8.219e-05,2]
[350447154,1737884977361,170.28,0.00016658,30]
[350447170,1737885031783,-250.0,9.587e-05,2]
[350447171,1737885031793,-250.0,9.64e-05,2]
[350447172,1737885031802,-161.77,9.725e-05,2]
[350447173,1737885031811,-150.0,0.0001,2]
[350447174,1737885031820,-168.514745,0.0001001,2]
[350447175,1737885031852,-81.485255,0.0001001,2]
[350447176,1737885031861,-161.8,0.0001001,2]
[350447177,1737885031870,-161.8,0.00010015,2]
[350447178,1737885031879,-161.8,0.0001002,2]
[350447179,1737885031888,-161.8,0.00010025,2]
[350447180,1737885031897,-161.8,0.0001003,2]
[350447181,1737885031907,-1000.0,0.00010032,2]
[350447182,1737885031916,-161.8,0.00010035,2]
[350447183,1737885031926,-42.85911346,0.00010036,2]
[350447184,1737885031939,-112.90088654,0.00010036,2]
[350447185,1737885031948,-161.8,0.0001004,2]
[350447186,1737885031958,-161.8,0.00010045,2]
[350447187,1737885031968,-161.8,0.0001005,2]
[350447188,1737885031978,-161.8,0.00010055,2]
[350447189,1737885031988,-161.8,0.0001006,2]
[350447190,1737885031997,-421.16,0.00010062,2]
[350447191,1737885032007,-284.05,0.00010137,2]
[350447192,1737885032016,-511.51,0.00010452,2]
[350447193,1737885032026,-174.9,0.0001074,2]
[350447194,1737885032035,-150.27,0.000108,2]
[350447195,1737885032044,-300.0,0.00010856,2]
[350447196,1737885032053,-275.9704,0.00010857,2]
[350447197,1737885032063,-314.1562,0.00010857,2]
[350447198,1737885032072,-1000.0,0.00010857,2]
[350447199,1737885032081,-580.37,0.00010857,2]
[350447200,1737885032090,-150.0,0.00010858,2]
[350447201,1737885032099,-385.1218236,0.00010858,2]
[350447202,1737885032109,-203.28849565,0.00010858,2]
[350447203,1737885032118,-582.6450916,0.00010948,2]
[350447204,1737885032127,-185.900342,0.00010948,2]
[350447205,1737885032136,-177.59356219,0.00010948,2]
[350447206,1737885032146,-177.59356219,0.00010948,2]
[350447207,1737885032155,-810.7228615,0.00010951,2]
[350447208,1737885032164,-258.6714613,0.00010951,2]
[350447209,1737885032174,-1274.736,0.00010956,2]
[350447210,1737885032434,-214785.96049283,0.00010956,2]
[350447211,1737885032445,-1332.5487398,0.00010956,2]
[350447212,1737885032457,-492.94792528,0.00010956,2]
[350447213,1737885032505,-659.2771561,0.00010956,2]
[350447214,1737885032758,-479.93685968,0.00010956,2]
[350447228,1737885037693,-8806.8748,0.00010956,2]
[350447234,1737885037736,-37961.64651854,0.00010956,2]
[350447235,1737885037745,-5781.24125936,0.00010957,2]
[350447236,1737885038110,-3203.07798857,0.00010957,2]
[350447237,1737885038123,-742.4952701,0.00010957,2]
[350447238,1737885038138,-10793.0,0.00010957,2]
[350447239,1737885038149,-1262.96000221,0.00010957,2]
[350447243,1737885039769,-670.6279443,0.00010857,2]
[350447244,1737885039779,-49700.46794318,0.00010957,2]
[350447245,1737885039788,-3321.54206397,0.00010957,2]
[350447246,1737885039800,-3136.65,0.00010957,2]
[350447247,1737885039825,-778.4821962,0.00010957,2]
[350447248,1737885039836,-263.91,0.00010957,2]
[350447249,1737885039887,-194.41082642,0.00010957,2]
[350447250,1737885039896,-500.0,0.00010957,2]
[350447251,1737885039906,-3000.0,0.00010957,2]
[350447252,1737885039916,-576.0,0.00010958,2]
[350447253,1737885039926,-191.994067,0.00010958,2]
[350447254,1737885039936,-191.994067,0.00010958,2]
[350447255,1737885039946,-191.994067,0.00010958,2]
[350447256,1737885039956,-191.994067,0.00010958,2]
[350447257,1737885039966,-191.994067,0.00010958,2]
[350447258,1737885039975,-191.994067,0.00010958,2]
[350447259,1737885039986,-191.994067,0.00010958,2]
[350447260,1737885039995,-191.994067,0.00010958,2]
[350447261,1737885040004,-191.994067,0.00010958,2]
[350447262,1737885040014,-191.994067,0.00010958,2]
[350447263,1737885040024,-191.994067,0.00010958,2]
[350447264,1737885040034,-191.994067,0.00010958,2]
[350447265,1737885040044,-191.994067,0.00010958,2]
[350447266,1737885040054,-191.994067,0.00010958,2]
[350447267,1737885040064,-191.994067,0.00010958,2]
[350447268,1737885040073,-191.994067,0.00010958,2]
[350447269,1737885040083,-191.994067,0.00010958,2]
[350447270,1737885040092,-191.994067,0.00010958,2]
[350447271,1737885040102,-191.994067,0.00010958,2]
[350447272,1737885040111,-191.994067,0.00010958,2]
[350447273,1737885040121,-191.994067,0.00010958,2]
[350447274,1737885040130,-191.994067,0.00010958,2]
[350447275,1737885040139,-191.994067,0.00010958,2]
[350447276,1737885040148,-191.994067,0.00010958,2]
[350447277,1737885040158,-210.263418,0.00010958,2]
[350447278,1737885040167,-210.263418,0.00010958,2]
[350447279,1737885040176,-210.263418,0.00010958,2]
[350447280,1737885040185,-210.263418,0.00010958,2]
[350447281,1737885040195,-210.263418,0.00010958,2]
[350447282,1737885040205,-210.263418,0.00010958,2]
[350447283,1737885040214,-210.263418,0.00010958,2]
[350447284,1737885040223,-210.263418,0.00010958,2]
[350447285,1737885040233,-124.44384152,0.00010958,2]
[350447286,1737885040283,-85.81957648,0.00010958,2]
[350447287,1737885040292,-166.31599071,0.00010958,2]
[350447288,1737885040305,-43.94742729,0.00010958,2]
[350447289,1737885040314,-210.263418,0.00010958,2]
[350447290,1737885040324,-75.42720327,0.00010958,2]
[350447302,1737885040427,-134.83621473,0.00010958,2]
[350447304,1737885040436,-210.263418,0.00010958,2]
[350447306,1737885040446,-210.263418,0.00010958,2]
[350447308,1737885040455,-210.263418,0.00010958,2]
[350447310,1737885040464,-210.263418,0.00010958,2]
[350447312,1737885040473,-210.263418,0.00010958,2]
[350447314,1737885040483,-210.263418,0.00010958,2]
[350447316,1737885040494,-210.263418,0.00010958,2]
[350447318,1737885040503,-159.806964,0.00010958,2]
[350447320,1737885040513,-210.263418,0.00010958,2]
[350447322,1737885040522,-159.806964,0.00010958,2]
[350447324,1737885040531,-210.263418,0.00010958,2]
[350447326,1737885040541,-159.806964,0.00010958,2]
[350447328,1737885040551,-210.263418,0.00010958,2]
[350447330,1737885040561,-159.806964,0.00010958,2]
[350447331,1737885040570,-210.263418,0.00010958,2]
[350447332,1737885040580,-210.263418,0.00010958,2]
[350447333,1737885040589,-160.96624,0.00010958,2]
[350447334,1737885040598,-160.96624,0.00010958,2]
[350447335,1737885040609,-160.96624,0.00010958,2]
[350447336,1737885040618,-194.186042,0.00010958,2]
[350447337,1737885040627,-194.186042,0.00010958,2]
[350447338,1737885040636,-500.0,0.00010958,2]
[350447339,1737885040647,-502.81760725,0.00010958,2]
[350447340,1737885040656,-517.95532832,0.00010958,2]
[350447341,1737885040665,-500.0,0.00010958,2]
[350447342,1737885040675,-528.08656584,0.00010958,2]
[350447343,1737885040687,-500.0,0.00010958,2]
[350447344,1737885040698,-500.0,0.00010958,2]
[350447346,1737885040707,-500.0,0.00010958,2]
[350447348,1737885040717,-500.0,0.00010958,2]
[350447350,1737885040726,-500.0,0.00010958,2]
[350447352,1737885040735,-500.0,0.00010958,2]
[350447354,1737885040743,-500.0,0.00010958,2]
[350447356,1737885040753,-500.0,0.00010958,2]
[350447358,1737885040762,-521.0152806,0.00010958,2]
[350447360,1737885040772,-500.0,0.00010958,2]
[350447362,1737885040782,-503.35422246,0.00010958,2]
[350447364,1737885040791,-500.0,0.00010958,2]
[350447366,1737885040801,-500.0,0.00010958,2]
[350447368,1737885040810,-500.0,0.00010958,2]
[350447370,1737885040819,-500.0,0.00010958,2]
[350447372,1737885040828,-500.0,0.00010958,2]
[350447374,1737885040837,-500.0,0.00010958,2]
[350447376,1737885040847,-500.0,0.00010958,2]
[350447378,1737885040856,-500.0,0.00010958,2]
[350447380,1737885040866,-500.0,0.00010958,2]
[350447382,1737885040875,-500.0,0.00010958,2]
[350447384,1737885040884,-500.0,0.00010958,2]
[350447386,1737885040894,-500.0,0.00010958,2]
[350447388,1737885040903,-500.0,0.00010958,2]
[350447390,1737885040912,-500.0,0.00010958,2]
[350447392,1737885040921,-500.0,0.00010958,2]
[350447394,1737885040931,-500.0,0.00010958,2]
[350447396,1737885040940,-500.0,0.00010958,2]
[350447398,1737885040949,-455.41513598,0.00010958,2]
[350447400,1737885040958,-500.0,0.00010958,2]
[350447402,1737885040968,-500.0,0.00010958,2]
[350447404,1737885040977,-500.0,0.00010958,2]
[350447406,1737885040989,-500.0,0.00010958,2]
[350447408,1737885040998,-506.08062414,0.00010958,2]
[350447410,1737885041007,-500.0,0.00010958,2]
[350447412,1737885041016,-500.0,0.00010958,2]
[350447414,1737885041026,-616.42023708,0.00010958,2]
[350447416,1737885041035,-511.16127084,0.00010958,2]
[350447418,1737885041044,-517.74622275,0.00010958,2]
[350447420,1737885041053,-500.0,0.00010958,2]
[350447422,1737885041062,-500.0,0.00010958,2]
[350447424,1737885041072,-500.0,0.00010958,2]
[350447426,1737885041081,-500.0,0.00010958,2]
[350447428,1737885041090,-500.0,0.00010958,2]
[350447430,1737885041099,-500.0,0.00010958,2]
[350447432,1737885041108,-500.0,0.00010958,2]
[350447434,1737885041117,-500.0,0.00010958,2]
[350447436,1737885041130,-500.0,0.00010958,2]
[350447460,1737885041370,-503.0773162,0.00010958,2]
[350447462,1737885041380,-500.0,0.00010958,2]
[350447464,1737885041389,-500.0,0.00010958,2]
[350447466,1737885041399,-500.0,0.00010958,2]
[350447468,1737885041408,-500.8268813,0.00010958,2]
[350447470,1737885041417,-500.0,0.00010958,2]
[350447471,1737885041426,-514.21985001,0.00010958,2]
[350447473,1737885041435,-500.0,0.00010958,2]
[350447476,1737885041454,-500.0,0.00010958,2]
[350447478,1737885041464,-505.56533212,0.00010958,2]
[350447480,1737885041475,-500.0,0.00010958,2]
[350447483,1737885041485,-500.0,0.00010958,2]
[350447484,1737885041495,-500.0,0.00010958,2]
[350447487,1737885041505,-500.0,0.00010958,2]
[350447488,1737885041514,-500.0,0.00010958,2]
[350447490,1737885041524,-500.0,0.00010958,2]
[350447492,1737885041534,-359.67983574,0.00010958,2]
[350447495,1737885041545,-330.56328008,0.00010958,2]
[350447496,1737885041554,-500.0,0.00010958,2]
[350447499,1737885041564,-500.0,0.00010958,2]
[350447500,1737885041574,-500.0,0.00010958,2]
[350447502,1737885041583,-500.0,0.00010958,2]
[350447504,1737885041593,-500.0,0.00010958,2]
[350447506,1737885041603,-500.0,0.00010958,2]
[350447508,1737885041615,-500.0,0.00010958,2]
[350447510,1737885041624,-500.0,0.00010958,2]
[350447512,1737885041634,-500.0,0.00010958,2]
[350447514,1737885041643,-500.0,0.00010958,2]
[350447516,1737885041653,-500.0,0.00010958,2]
[350447518,1737885041662,-500.0,0.00010958,2]
[350447520,1737885041671,-500.0,0.00010958,2]
[350447522,1737885041681,-561.45646932,0.00010958,2]
[350447524,1737885041691,-500.0,0.00010958,2]
[350447526,1737885041700,-500.0,0.00010958,2]
[350447528,1737885041710,-500.0,0.00010958,2]
[350447530,1737885041720,-500.0,0.00010958,2]
[350447532,1737885041730,-500.0,0.00010958,2]
[350447534,1737885041740,-500.0,0.00010958,2]
[350447536,1737885041749,-500.0,0.00010958,2]
[350447538,1737885041759,-500.0,0.00010958,2]
[350447540,1737885041769,-500.0,0.00010958,2]
[350447542,1737885041779,-500.0,0.00010958,2]
[350447544,1737885041789,-500.0,0.00010958,2]
[350447546,1737885041799,-500.0,0.00010958,2]
[350447548,1737885041808,-379.9709661,0.00010958,2]
[350447550,1737885041818,-500.0,0.00010958,2]
[350447552,1737885041827,-500.0,0.00010958,2]
[350447554,1737885041837,-500.0,0.00010958,2]
[350447557,1737885041847,-500.0,0.00010958,2]
[350447558,1737885041857,-500.0,0.00010958,2]
[350447560,1737885041866,-508.12338207,0.00010958,2]
[350447562,1737885041876,-500.0,0.00010958,2]
[350447565,1737885041885,-500.0,0.00010958,2]
[350447567,1737885041895,-500.0,0.00010958,2]
[350447569,1737885041905,-500.0,0.00010958,2]
[350447571,1737885041915,-501.44493825,0.00010958,2]
[350447573,1737885041925,-500.0,0.00010958,2]
[350447575,1737885041934,-500.0,0.00010958,2]
[350447577,1737885041943,-500.0,0.00010958,2]
[350447578,1737885041953,-500.0,0.00010958,2]
[350447580,1737885041963,-283.83438167,0.00010958,2]
[350447582,1737885041973,-500.0,0.00010958,2]
[350447584,1737885041982,-500.0,0.00010958,2]
[350447586,1737885041992,-500.0,0.00010958,2]
[350447588,1737885042001,-500.0,0.00010958,2]
[350447590,1737885042011,-500.0,0.00010958,2]
[350447592,1737885042022,-500.0,0.00010958,2]
[350447594,1737885042032,-500.0,0.00010958,2]
[350447596,1737885042041,-500.0,0.00010958,2]
[350447598,1737885042051,-205.22491515,0.00010958,2]
[350447600,1737885042061,-500.0,0.00010958,2]
[350447602,1737885042070,-500.0,0.00010958,2]
[350447604,1737885042080,-500.0,0.00010958,2]
[350447606,1737885042090,-500.0,0.00010958,2]
[350447608,1737885042100,-500.0,0.00010958,2]
[350447610,1737885042110,-500.0,0.00010958,2]
[350447612,1737885042119,-500.0,0.00010958,2]
[350447614,1737885042130,-509.35940889,0.00010958,2]
[350447616,1737885042139,-500.0,0.00010958,2]
[350447618,1737885042149,-500.0,0.00010958,2]
[350447620,1737885042159,-508.41047092,0.00010958,2]
[350447622,1737885042168,-500.0,0.00010958,2]
[350447623,1737885042178,-500.0,0.00010958,2]
[350447625,1737885042187,-500.0,0.00010958,2]
[350447627,1737885042197,-500.0,0.00010958,2]
[350447629,1737885042212,-500.0,0.00010958,2]
[350447630,1737885042222,-500.0,0.00010958,2]
[350447632,1737885042232,-500.0,0.00010958,2]
[350447634,1737885042241,-500.0,0.00010958,2]
[350447635,1737885042250,-500.0,0.00010958,2]
[350447637,1737885042259,-509.70879991,0.00010958,2]
[350447639,1737885042269,-500.0,0.00010958,2]
[350447641,1737885042279,-500.0,0.00010958,2]
[350447643,1737885042288,-502.33141178,0.00010958,2]
[350447644,1737885042298,-500.0,0.00010958,2]
[350447646,1737885042307,-500.0,0.00010958,2]
[350447648,1737885042317,-500.0,0.00010958,2]
[350447650,1737885042326,-500.0,0.00010958,2]
[350447652,1737885042335,-500.0,0.00010958,2]
[350447653,1737885042345,-500.0,0.00010958,2]
[350447654,1737885042354,-500.0,0.00010958,2]
[350447655,1737885042363,-500.0,0.00010958,2]
[350447656,1737885042373,-529.56866876,0.00010958,2]
[350447657,1737885042383,-500.0,0.00010958,2]
[350447658,1737885042393,-500.0,0.00010958,2]
[350447659,1737885042403,-486.95,0.00010958,2]
[350447660,1737885042416,-500.0,0.00010958,2]
[350447661,1737885042426,-500.0,0.00010958,2]
[350447662,1737885042436,-505.05198798,0.00010958,2]
[350447663,1737885042447,-500.0,0.00010958,2]
[350447664,1737885042459,-500.0,0.00010958,2]
[350447665,1737885042468,-213.80531747,0.00010958,2]
[350447666,1737885042478,-500.0,0.00010958,2]
[350447667,1737885042487,-356.27635425,0.00010958,2]
[350447669,1737885042496,-500.0,0.00010958,2]
[350447670,1737885042506,-500.0,0.00010958,2]
[350447671,1737885042516,-500.0,0.00010958,2]
[350447672,1737885042526,-500.0,0.00010958,2]
[350447673,1737885042536,-500.0,0.00010958,2]
[350447674,1737885042545,-500.0,0.00010958,2]
[350447675,1737885042555,-500.0,0.00010958,2]
[350447676,1737885042564,-500.0,0.00010958,2]
[350447677,1737885042574,-500.0,0.00010958,2]
[350447678,1737885042583,-500.0,0.00010958,2]
[350447680,1737885042592,-500.0,0.00010958,2]
[350447682,1737885042604,-500.0,0.00010958,2]
[350447684,1737885042625,-500.0,0.00010958,2]
[350447685,1737885042635,-500.0,0.00010958,2]
[350447686,1737885042644,-500.0,0.00010958,2]
[350447687,1737885042654,-502.80479337,0.00010958,2]
[350447688,1737885042663,-500.0,0.00010958,2]
[350447689,1737885042673,-500.0,0.00010958,2]
[350447690,1737885042683,-500.0,0.00010958,2]
[350447691,1737885042692,-500.0,0.00010958,2]
[350447692,1737885042701,-500.0,0.00010958,2]
[350447693,1737885042710,-500.0,0.00010958,2]
[350447694,1737885042720,-500.0,0.00010958,2]
[350447695,1737885042729,-500.0,0.00010958,2]
[350447696,1737885042739,-500.0,0.00010958,2]
[350447697,1737885042749,-500.0,0.00010958,2]
[350447698,1737885042758,-500.0,0.00010958,2]
[350447699,1737885042768,-500.0,0.00010958,2]
[350447700,1737885042778,-500.0,0.00010958,2]
[350447701,1737885042787,-500.0,0.00010958,2]
[350447702,1737885042797,-500.0,0.00010958,2]
[350447703,1737885042807,-500.0,0.00010958,2]
[350447704,1737885042816,-500.0,0.00010958,2]
[350447705,1737885042826,-500.0,0.00010958,2]
[350447706,1737885042835,-500.0,0.00010958,2]
[350447707,1737885042844,-513.82876711,0.00010958,2]
[350447708,1737885042854,-500.0,0.00010958,2]
[350447709,1737885042864,-585.2267564,0.00010958,2]
[350447710,1737885042874,-500.0,0.00010958,2]
[350447711,1737885042883,-505.06923569,0.00010958,2]
[350447712,1737885042893,-500.0,0.00010958,2]
[350447713,1737885042902,-500.0,0.00010958,2]
[350447714,1737885042912,-501.04251439,0.00010958,2]
[350447715,1737885042922,-500.0,0.00010958,2]
[350447716,1737885042932,-500.0,0.00010958,2]
[350447717,1737885042941,-524.09819057,0.00010958,2]
[350447718,1737885042951,-500.0,0.00010958,2]
[350447719,1737885042960,-500.0,0.00010958,2]
[350447720,1737885042970,-557.30743256,0.00010958,2]
[350447721,1737885042980,-500.0,0.00010958,2]
[350447722,1737885042989,-500.0,0.00010958,2]
[350447723,1737885042998,-500.0,0.00010958,2]
[350447724,1737885043008,-500.0,0.00010958,2]
[350447725,1737885043018,-500.0,0.00010958,2]
[350447726,1737885043028,-500.0,0.00010958,2]
[350447727,1737885043037,-500.0,0.00010958,2]
[350447728,1737885043047,-500.0,0.00010958,2]
[350447729,1737885043057,-381.21662083,0.00010958,2]
[350447730,1737885043067,-500.0,0.00010958,2]
[350447731,1737885043076,-500.0,0.00010958,2]
[350447732,1737885043086,-500.0,0.00010958,2]
[350447733,1737885043095,-500.0,0.00010958,2]
[350447734,1737885043105,-500.0,0.00010958,2]
[350447735,1737885043115,-500.0,0.00010958,2]
[350447736,1737885043124,-500.0,0.00010958,2]
[350447737,1737885043134,-514.87407539,0.00010958,2]
[350447738,1737885043143,-500.0,0.00010958,2]
[350447739,1737885043152,-500.0,0.00010958,2]
[350447740,1737885043162,-500.0,0.00010958,2]
[350447741,1737885043171,-500.0,0.00010958,2]
[350447742,1737885043181,-362.26724976,0.00010958,2]
[350447743,1737885043190,-500.0,0.00010958,2]
[350447744,1737885043200,-500.0,0.00010958,2]
[350447745,1737885043210,-500.0,0.00010958,2]
[350447746,1737885043219,-500.0,0.00010958,2]
[350447747,1737885043229,-500.0,0.00010958,2]
[350447748,1737885043238,-500.0,0.00010958,2]
[350447749,1737885043248,-500.0,0.00010958,2]
[350447750,1737885043258,-500.0,0.00010958,2]
[350447751,1737885043267,-500.0,0.00010958,2]
[350447752,1737885043277,-500.0,0.00010958,2]
[350447753,1737885043287,-500.0,0.00010958,2]
[350447754,1737885043296,-500.0,0.00010958,2]
[350447755,1737885043305,-500.0,0.00010958,2]
[350447756,1737885043315,-306.79046239,0.00010958,2]
[350447757,1737885043325,-500.0,0.00010958,2]